[Event "FAI-ch Main 2020"]
[Site "Runavik"]
[Date "2020.10.31"]
[Round "6.5"]
[White "Joensen, Sigurd"]
[Black "Bjarnasson, Bessi"]
[Result "0-1"]
[ECO "C50"]
[WhiteElo "1537"]
[BlackElo "1494"]
[Annotator "NA RC"]
[PlyCount "66"]
[EventDate "2020.10.23"]
[EventType "swiss"]
[EventCountry "FAI"]
[SourceTitle "playchess.com"]
[Source "ChessBase"]
[SourceQuality "1"]
[TimeControl "40/5400+30:900+30"]

1. e4 {[%emt 0:01:52]} e5 {[%emt 0:00:17]} 2. Nf3 {[%emt 0:00:46]} Nc6 {[%emt 0:00:30]} 3. Bc4 {[%emt 0:01:06]} Bc5 {[%emt 0:01:03]} 4. d3 {[%emt 0:03:06]} Nf6 {[%emt 0:00:16]} 5. O-O {[%emt 0:02:25]} O-O {[%emt 0:01:55]} 6. Bg5 {[%emt 0:01:36]} h6 {[%emt 0:00:57]} 7. Bh4 {[%emt 0:00:11]} d6 {[%emt 0:06:05]} 8. h3 {[%emt 0:00:38]} Be6 {[%emt 0:00:46]} 9. Nbd2 {[%emt 0:05:59]} a6 {[%emt 0:01:35]} 10. c3 {[%emt 0:03:21]} b5 {[%emt 0:00:35]} 11. Bb3 {[%emt 0:01:07]} Ba7 {[%emt 0:01:42]} 12. Kh1 {[%emt 0:02:56]} g5 {[%emt 0:04:06]} 13. Bxe6 {[%emt 0:10:33]} fxe6 {[%emt 0:00:17]} 14. Bg3 {[%emt 0:01:47]} Nh5 {[%emt 0:01:42]} 15. Nh2 {[%emt 0:07:26]} Nf4 {[%emt 0:01:48]} 16. Bxf4 {[%emt 0:05:31]} Rxf4 {[%emt 0:00:50]} 17. Ndf3 {[%emt 0:08:40]} Qf8 {[%emt 0:08:02]} 18. Qe2 {[%emt 0:07:17]} Qg7 {[%emt 0:04:18]} 19. Nd2 {[%emt 0:05:15]} Raf8 {[%emt 0:01:15]} 20. f3 {[%emt 0:00:19]} Ne7 {[%emt 0:07:23]} 21. Nb3 {[%emt 0:03:57]} d5 {[%emt 0:01:51]} 22. Nd2 {[%emt 0:02:57]} c6 {[%emt 0:07:12]} 23. b4 {[%emt 0:01:48]} Ng6 {[%emt 0:15:15]} 24. a4 {[%emt 0:01:03]} R4f7 {[%emt 0:00:26]} 25. axb5 {[%emt 0:01:34]} axb5 {[%emt 0:00:44]} 26. Ra6 {[%emt 0:02:00]} Nf4 {[%emt 0:01:47]} 27. Qe1 {[%emt 0:04:54]} Nxd3 {[%emt 0:05:09]} 28. Qg3 {[%emt 0:02:45]} Be3 {[%emt 0:01:52]} 29. Nb3 {[%emt 0:02:50]} h5 {[%emt 0:05:58]} 30. h4 {[%emt 0:02:19]} g4 {[%emt 0:07:42]} 31. fxg4 {[%emt 0:03:51]} Rxf1+ {[%emt 0:00:25]} 32. Nxf1 {[%emt 0:01:15]} Rxf1+ {[%emt 0:00:04]} 33. Kh2 {[%emt 0:00:41]} Bf4 {[%emt 0:00:13]} 0-1

[Event "FAI-ch Main 2020"]
[Site "Runavik"]
[Date "2020.10.31"]
[Round "7.1"]
[White "Dahl, Karl M"]
[Black "Tummasarson, Flovin M."]
[Result "0-1"]
[ECO "D53"]
[WhiteElo "1590"]
[BlackElo "1625"]
[Annotator "NA RC"]
[PlyCount "64"]
[EventDate "2020.10.23"]
[EventType "swiss"]
[EventCountry "FAI"]
[SourceTitle "playchess.com"]
[Source "ChessBase"]
[SourceQuality "1"]
[TimeControl "40/5400+30:900+30"]

1. d4 {[%emt 0:00:00]} d5 {[%emt 0:00:00]} 2. c4 {[%emt 0:00:00]} e6 {[%emt 0:00:04]} 3. Nc3 {[%emt 0:00:20]} Nf6 {[%emt 0:00:13]} 4. Bg5 {[%emt 0:01:14]} Be7 {[%emt 0:01:50]} 5. e3 {[%emt 0:00:32]} c6 {[%emt 0:01:08]} 6. cxd5 {[%emt 0:01:14]} exd5 {[%emt 0:01:20]} 7. Bd3 {[%emt 0:00:53]} O-O {[%emt 0:01:46]} 8. Nge2 {[%emt 0:01:45]} Re8 {[%emt 0:04:13]} 9. O-O {[%emt 0:02:20]} Nbd7 {[%emt 0:01:45]} 10. Qc2 {[%emt 0:06:35]} h6 {[%emt 0:03:47]} 11. Bf4 {[%emt 0:06:51]} Nh5 {[%emt 0:02:53]} 12. Bg3 {[%emt 0:01:47]} Nxg3 {[%emt 0:01:44]} 13. Nxg3 {[%emt 0:00:46]} Nf6 {[%emt 0:01:25]} 14. Rad1 {[%emt 0:03:35]} Bd7 {[%emt 0:04:15]} 15. Rfe1 {[%emt 0:04:00]} Bd6 {[%emt 0:02:50]} 16. Nf1 {[%emt 0:07:11]} Rc8 {[%emt 0:04:57]} 17. a3 {[%emt 0:03:50]} Bb8 {[%emt 0:07:04]} 18. Qd2 {[%emt 0:02:55]} Rc7 {[%emt 0:04:31]} 19. Bb1 {[%emt 0:05:49]} Bc8 {[%emt 0:00:19]} 20. f3 {[%emt 0:00:51]} Rce7 {[%emt 0:01:07]} 21. e4 {[%emt 0:01:08]} dxe4 {[%emt 0:01:45]} 22. fxe4 {[%emt 0:01:08]} Nh5 {[%emt 0:16:02]} 23. Qf2 {[%emt 0:03:06]} Nf4 {[%emt 0:04:34]} 24. e5 {[%emt 0:02:11]} Nd5 {[%emt 0:02:09]} 25. Nxd5 {[%emt 0:03:49]} Qxd5 {[%emt 0:00:33]} 26. Qc2 {[%emt 0:00:49]} g6 {[%emt 0:01:06]} 27. Ne3 {[%emt 0:02:40]} Qd8 {[%emt 0:02:43]} 28. Ba2 {[%emt 0:04:00]} Be6 {[%emt 0:01:52]} 29. d5 {[%emt 0:02:25]} cxd5 {[%emt 0:01:03]} 30. Bxd5 {[%emt 0:00:14]} Qb6 {[%emt 0:04:47]} 31. Kh1 {[%emt 0:01:05]} Kg7 {[%emt 0:04:44]} 32. Be4 {[%emt 0:05:31]} Bb3 {[%emt 0:01:43]} 0-1

[Event "FAI-ch Main 2020"]
[Site "Runavik"]
[Date "2020.10.31"]
[Round "7.2"]
[White "Gregersen, Einar"]
[Black "Rasmussen, Gunnleif"]
[Result "1-0"]
[ECO "C42"]
[WhiteElo "1758"]
[BlackElo "1148"]
[Annotator "NA RC"]
[PlyCount "63"]
[EventDate "2020.10.23"]
[EventType "swiss"]
[EventCountry "FAI"]
[SourceTitle "playchess.com"]
[Source "ChessBase"]
[SourceQuality "1"]
[TimeControl "40/5400+30:900+30"]

1. e4 {[%emt 0:00:00]} e5 {[%emt 0:00:00]} 2. Nf3 {[%emt 0:00:00]} Nf6 {[%emt 0:00:00]} 3. Nxe5 {[%emt 0:00:21]} Nc6 {[%emt 0:00:00]} 4. Nxc6 {[%emt 0:00:31]} dxc6 {[%emt 0:00:00]} 5. d3 {[%emt 0:00:13]} Bc5 {[%emt 0:00:04]} 6. Be2 {[%emt 0:00:34]} h5 {[%emt 0:15:11]} 7. c3 {[%emt 0:00:17]} Bxf2+ {[%emt 0:01:20]} 8. Kxf2 {[%emt 0:06:55]} Ng4+ {[%emt 0:06:38]} 9. Ke1 {[%emt 0:06:54]} Qf6 {[%emt 0:09:10]} 10. Bf3 {[%emt 0:03:23]} Qh4+ {[%emt 0:04:08]} 11. g3 {[%emt 0:00:26]} Qh3 {[%emt 0:01:23]} 12. Qe2 {[%emt 0:03:08]} Ne5 {[%emt 0:06:53]} 13. d4 {[%emt 0:02:02]} Nxf3+ {[%emt 0:04:37]} 14. Qxf3 {[%emt 0:00:14]} h4 {[%emt 0:03:29]} 15. Bf4 {[%emt 0:06:50]} Bg4 {[%emt 0:05:18]} 16. Qf1 {[%emt 0:03:17]} O-O-O {[%emt 0:02:54]} 17. Qxh3 {[%emt 0:01:30]} Bxh3 {[%emt 0:00:11]} 18. Nd2 {[%emt 0:00:51]} Bg2 {[%emt 0:04:35]} 19. Rg1 {[%emt 0:01:13]} h3 {[%emt 0:00:08]} 20. e5 {[%emt 0:05:18]} Rde8 {[%emt 0:04:46]} 21. Kf2 {[%emt 0:02:03]} Bd5 {[%emt 0:05:34]} 22. Nf3 {[%emt 0:02:02]} f6 {[%emt 0:01:05]} 23. exf6 {[%emt 0:01:35]} gxf6 {[%emt 0:02:04]} 24. Rge1 {[%emt 0:00:58]} Bxf3 {[%emt 0:07:50]} 25. Kxf3 {[%emt 0:00:29]} f5 {[%emt 0:00:10]} 26. Re5 {[%emt 0:01:48]} Rhf8 {[%emt 0:02:30]} 27. Rae1 {[%emt 0:00:22]} Kd7 {[%emt 0:00:32]} 28. Rxe8 {[%emt 0:00:48]} Rxe8 {[%emt 0:00:48]} 29. Rxe8 {[%emt 0:00:08]} Kxe8 {[%emt 0:00:13]} 30. g4 {[%emt 0:00:24]} Kf7 {[%emt 0:02:44]} 31. gxf5 {[%emt 0:00:17]} Kf6 {[%emt 0:00:18]} 32. Ke4 1-0

[Event "FAI-ch Main 2020"]
[Site "Runavik"]
[Date "2020.10.31"]
[Round "7.3"]
[White "Bjarnasson, Bessi"]
[Black "Morkore, Rogvi"]
[Result "0-1"]
[ECO "C02"]
[WhiteElo "1494"]
[BlackElo "1592"]
[Annotator "NA RC"]
[PlyCount "48"]
[EventDate "2020.10.23"]
[EventType "swiss"]
[EventCountry "FAI"]
[SourceTitle "playchess.com"]
[Source "ChessBase"]
[SourceQuality "1"]
[TimeControl "40/5400+30:900+30"]

1. e4 {[%emt 0:00:00]} e6 {[%emt 0:00:00]} 2. d4 {[%emt 0:00:23]} d5 {[%emt 0:00:01]} 3. e5 {[%emt 0:00:41]} c5 {[%emt 0:00:19]} 4. c3 {[%emt 0:00:15]} Nc6 {[%emt 0:00:13]} 5. Nf3 {[%emt 0:01:52]} Bd7 {[%emt 0:00:27]} 6. Bd3 {[%emt 0:01:39]} cxd4 {[%emt 0:00:57]} 7. cxd4 {[%emt 0:00:52]} Qb6 {[%emt 0:00:27]} 8. O-O {[%emt 0:02:52]} Nxd4 {[%emt 0:00:22]} 9. Be3 {[%emt 0:00:24]} Nxf3+ {[%emt 0:00:26]} 10. Qxf3 {[%emt 0:00:52]} Qxb2 {[%emt 0:02:39]} 11. Nd2 {[%emt 0:01:00]} Qxe5 {[%emt 0:00:39]} 12. Rac1 {[%emt 0:02:20]} Bd6 {[%emt 0:02:35]} 13. g3 {[%emt 0:01:03]} Qf6 {[%emt 0:01:10]} 14. Qe2 {[%emt 0:02:00]} Ne7 {[%emt 0:01:53]} 15. Nb3 {[%emt 0:10:05]} O-O {[%emt 0:04:00]} 16. Bd4 {[%emt 0:01:37]} e5 {[%emt 0:00:30]} 17. Bb2 {[%emt 0:00:34]} Qg5 {[%emt 0:02:59]} 18. Rc2 {[%emt 0:07:12]} e4 {[%emt 0:01:54]} 19. h4 {[%emt 0:03:22]} exd3 {[%emt 0:02:18]} 20. Qxd3 {[%emt 0:01:16]} Qg6 {[%emt 0:01:19]} 21. Qd2 {[%emt 0:05:37]} Bh3 {[%emt 0:03:55]} 22. Re1 {[%emt 0:02:53]} Bxg3 {[%emt 0:02:29]} 23. fxg3 {[%emt 0:01:38]} Qxg3+ {[%emt 0:00:13]} 24. Kh1 {[%emt 0:00:15]} Qxh4 {[%emt 0:01:22]} 0-1

[Event "FAI-ch Main 2020"]
[Site "Runavik"]
[Date "2020.10.31"]
[Round "7.5"]
[White "Joensen, Jon Magnus"]
[Black "Joensen, Sigurd"]
[Result "1/2-1/2"]
[ECO "C41"]
[WhiteElo "1461"]
[BlackElo "1537"]
[Annotator "NA RC"]
[PlyCount "50"]
[EventDate "2020.10.23"]
[EventType "swiss"]
[EventCountry "FAI"]
[SourceTitle "playchess.com"]
[Source "ChessBase"]
[SourceQuality "1"]
[TimeControl "40/5400+30:900+30"]

1. e4 {[%emt 0:00:14]} e5 {[%emt 0:00:00]} 2. Nf3 {[%emt 0:00:15]} d6 {[%emt 0:00:27]} 3. h3 {[%emt 0:00:18]} f5 {[%emt 0:01:32]} 4. d3 {[%emt 0:00:18]} Nf6 {[%emt 0:07:12]} 5. Nc3 {[%emt 0:01:51]} Be7 {[%emt 0:00:26]} 6. Bg5 {[%emt 0:00:27]} O-O {[%emt 0:00:52]} 7. Qe2 {[%emt 0:00:55]} f4 {[%emt 0:02:23]} 8. g3 {[%emt 0:03:00]} fxg3 {[%emt 0:03:08]} 9. fxg3 {[%emt 0:00:14]} Nh5 {[%emt 0:00:56]} 10. Bxe7 {[%emt 0:01:38]} Qxe7 {[%emt 0:00:21]} 11. Rg1 {[%emt 0:02:28]} c6 {[%emt 0:05:47]} 12. O-O-O {[%emt 0:01:57]} Qf6 {[%emt 0:05:52]} 13. Nd2 {[%emt 0:03:35]} Qf7 {[%emt 0:06:05]} 14. Qe3 {[%emt 0:03:44]} b5 {[%emt 0:02:55]} 15. Be2 {[%emt 0:00:39]} Nf6 {[%emt 0:01:17]} 16. g4 {[%emt 0:01:09]} b4 {[%emt 0:02:53]} 17. Ncb1 {[%emt 0:01:17]} Qxa2 {[%emt 0:02:28]} 18. g5 {[%emt 0:00:29]} Ne8 {[%emt 0:08:12]} 19. d4 {[%emt 0:00:11]} Qf7 {[%emt 0:10:18]} 20. dxe5 {[%emt 0:04:17]} Qe7 {[%emt 0:07:21]} 21. exd6 {[%emt 0:00:34]} Nxd6 {[%emt 0:00:55]} 22. Qc5 {[%emt 0:02:07]} Be6 {[%emt 0:13:37]} 23. h4 {[%emt 0:03:05]} Nf5 {[%emt 0:02:10]} 24. Qxe7 {[%emt 0:02:50]} Nxe7 {[%emt 0:00:06]} 25. Bc4 {[%emt 0:00:27]} Bxc4 {[%emt 0:01:33]} 1/2-1/2